bitfinex-derivatives/quotes_ETHF0:USTF0_20250524
["timestamp","ask_amount","ask_price","bid_price","bid_amount"]
[1748129834556,1.3161,2532.3,2532.2,17.96959]
[1748129836858,1.3161,2532.3,2532.2,17.18]
[1748129837052,7.10566,2532.3,2532.2,17.18]
[1748129837361,0.78959,2532.2,2532.1,3.2078]
[1748129837658,0.78959,2532.2,2531.6,1.43838257]
[1748129837659,0.78975,2531.7,2531.6,1.43838257]
[1748129837862,0.305,2531.9,2531.8,0.78971]
[1748129838062,1.7216,2531.9,2531.8,3.99751]
[1748129838263,1.7216,2531.9,2531.8,0.78971]
[1748129838464,1.7216,2531.9,2531.8,3.99751]
[1748129838957,2.3665,2531.9,2531.8,3.99751]
[1748129839665,3.15618,2531.9,2531.8,0.78971]
[1748129840059,0.78978,2531.6,2531.5,3.2078]
[1748129840361,0.78978,2531.6,2531.5,17.18]
[1748129841065,0.78976,2531.7,2531.6,0.78977]
[1748129841365,2.1107,2531.7,2531.5,17.96979]
[1748129841662,0.78978,2531.6,2531.5,17.18]
[1748129841859,2.19528,2531.6,2531.5,17.18]
[1748129843261,6.4055,2531.6,2531.4,0.00592733]
[1748129843462,0.78996,2531.0,2530.9,3.2078]
[1748129843660,0.78996,2531.0,2530.9,20.3888]
[1748129843965,0.78995,2531.1,2530.9,20.3888]
[1748129844157,2.09696,2531.0,2530.9,20.3888]
[1748129844359,0.79003,2530.8,2530.7,1.43838257]
[1748129844658,0.79009,2530.6,2530.5,20.39472733]
[1748129844858,1.307,2530.7,2530.6,0.79009]
[1748129845058,2.09706,2530.7,2530.6,0.79009]
[1748129845253,2.09706,2530.7,2530.5,20.39472733]
[1748129845254,0.79009,2530.6,2530.5,21.18483733]
[1748129845464,2.09709,2530.6,2530.5,21.18483733]
[1748129845863,2.09709,2530.6,2530.5,20.39472733]
[1748129846062,2.09709,2530.6,2530.5,17.18692733]
[1748129846257,2.09709,2530.6,2530.5,17.97704733]
[1748129847165,2.09709,2530.6,2530.5,17.18692733]
[1748129848468,2.80099,2530.6,2530.5,17.18692733]
[1748129849168,2.80099,2530.6,2530.5,0.00592733]
[1748129849369,6.00879,2530.6,2530.5,0.00592733]
[1748129852473,6.00879,2530.6,2530.3,17.185]
[1748129852474,10.5237,2530.6,2530.1,3.2078]
[1748129852666,0.9985,2530.5,2530.4,0.79015]
[1748129852970,0.305,2530.9,2530.8,0.79003]
[1748129853170,0.6935,2530.9,2530.8,0.79003]
[1748129853571,1.4835,2530.9,2530.7,21.13884]
[1748129853874,0.6935,2530.9,2530.8,0.79003]
[1748129854073,1.48352,2530.9,2530.7,21.13884]
[1748129854263,1.3721,2530.8,2530.7,21.13884]
[1748129854574,1.3721,2530.8,2530.7,17.142]
[1748129854770,2.16213,2530.8,2530.7,17.142]
[1748129855371,1.3721,2530.8,2530.7,17.142]
[1748129855573,2.16213,2530.8,2530.7,17.142]
[1748129857371,1.3721,2530.8,2530.7,17.142]
[1748129857576,0.6935,2530.9,2530.8,0.79002]
[1748129857875,2.0127,2530.9,2530.8,0.79002]
[1748129858073,2.80269,2530.9,2530.7,23.09513]
[1748129858372,2.0127,2530.9,2530.7,22.3051]
[1748129858565,2.8027,2530.9,2530.7,22.3051]
[1748129858768,2.8027,2530.9,2530.8,0.79002]
[1748129859076,2.0127,2530.9,2530.8,0.79002]
[1748129859478,2.08819626,2530.9,2530.8,2.07782]
[1748129859771,0.305,2531.3,2531.2,0.7899]
[1748129859970,19.8381,2531.6,2531.2,20.3498]
[1748129860174,0.78987,2531.3,2531.2,17.142]
[1748129861369,1.4132,2531.4,2531.3,0.78987]
[1748129861569,0.78987,2531.3,2531.2,19.1249]
[1748129861770,0.78987,2531.3,2531.2,17.142]
[1748129862073,1.49047,2531.3,2531.2,17.142]
[1748129862971,0.7006,2531.3,2530.9,2.08477]
[1748129863177,1.49047,2531.3,2531.2,17.142]
[1748129863473,0.78993,2531.1,2530.9,2.08477]
[1748129863675,0.78993,2531.1,2531.0,17.142]
[1748129864269,0.78993,2531.1,2531.0,17.93196]
[1748129864464,0.78992,2531.2,2531.1,0.78992]
[1748129864674,0.78992,2531.2,2531.0,21.13973]
[1748129864874,3.28922359,2531.5,2531.0,20.3498]
[1748129865070,0.78988,2531.3,2531.1,2.0544]
[1748129865378,0.78988,2531.3,2531.2,2.0538]
[1748129865879,0.78988,2531.3,2531.2,2.8437]
[1748129866079,0.78986,2531.4,2531.3,0.78986]
[1748129866280,0.78987,2531.3,2531.2,2.84368]
[1748129866474,3.51872733,2531.5,2531.4,0.78984]
[1748129866776,0.78984,2531.4,2531.3,2.18565]
[1748129867972,0.78984,2531.4,2531.3,1.3958]
[1748129868172,3.51872733,2531.5,2531.3,1.3958]
[1748129868377,3.51872733,2531.5,2531.4,0.78984]
[1748129868777,0.00592733,2531.5,2531.4,17.93084]
[1748129868981,0.00592733,2531.5,2531.4,24.34324]
[1748129870372,0.00592733,2531.5,2531.4,19.34324]
[1748129871679,0.00592733,2531.5,2531.4,19.66498012]
[1748129871978,0.00592733,2531.5,2531.4,19.34324]
[1748129879078,0.00592733,2531.5,2531.4,22.55104]
[1748129880887,0.00592733,2531.5,2531.4,21.13864]
[1748129884087,0.305,2531.9,2531.8,0.78971]
[1748129884277,0.6911,2532.0,2531.9,0.78968]
[1748129884478,0.6911,2532.0,2531.9,2.86188]
[1748129885083,1.989,2532.0,2531.9,2.86188]
[1748129885382,2.77865,2532.0,2531.9,0.6742]
[1748129885688,0.78968,2531.9,2531.8,21.0825]
[1748129885994,1.9496,2531.9,2531.8,21.0825]
[1748129886981,2.65169241,2532.5,2532.4,0.78952]
[1748129887178,2.34669241,2532.5,2532.4,3.2078]
[1748129887382,0.78956,2532.3,2532.2,0.00592733]
[1748129887983,2.12256,2532.3,2532.2,0.00592733]
[1748129888183,5.33036,2532.3,2532.2,0.00592733]
[1748129888379,6.61606,2532.3,2532.2,0.00592733]
[1748129890382,6.61606,2532.3,2531.8,0.78971]
[1748129890585,3.2078,2531.4,2529.9,3.94746148]
[1748129890883,1.97535,2530.5,2529.9,3.30136148]
[1748129891184,3.2078,2530.0,2529.9,0.7903]
[1748129891578,3.2078,2530.0,2529.8,17.87431]
[1748129891884,1.3687,2529.9,2529.8,17.87431]
[1748129892381,0.00592733,2530.2,2530.1,0.79024]
[1748129892587,1.31692733,2530.2,2530.0,0.79026]
[1748129893085,1.31692733,2530.2,2530.0,0.79025]
[1748129893482,1.31692733,2530.2,2530.1,0.79024]
[1748129893799,0.00592733,2530.2,2530.1,0.79024]
[1748129897788,0.00592733,2530.2,2530.1,17.87924]
[1748129900993,3.2078,2530.9,2530.8,0.79002]
[1748129901296,3.2078,2530.9,2530.8,17.88002]
[1748129901792,2.0451,2531.1,2531.0,0.78996]
[1748129902887,3.2078,2531.5,2530.9,3.26532]
[1748129903093,1.3302,2531.6,2531.5,0.7898]
[1748129903287,1.3302,2531.6,2531.5,17.8798]
[1748129904597,1.3302,2531.6,2531.3,0.00592733]
[1748129904797,3.99763,2531.4,2531.3,0.00592733]
[1748129905296,8.99763,2531.4,2531.3,0.00592733]
[1748129906294,8.5128,2531.4,2531.2,17.089]
[1748129906590,2.08007,2531.3,2531.2,17.089]
[1748129906794,7.75117,2531.3,2531.2,17.089]
[1748129908498,25.52717,2531.3,2531.2,17.089]
[1748129909295,0.78993,2531.1,2531.0,0.00592733]
[1748129909601,3.99773,2531.1,2531.0,17.09492733]
[1748129909795,3.2078,2531.1,2531.0,17.88488733]
[1748129909996,0.6614,2531.2,2531.1,0.78993]
[1748129910203,0.305,2531.3,2531.2,0.7899]
[1748129910900,3.2078,2531.5,2531.4,0.78983]
[1748129911100,3.2078,2531.5,2531.4,17.87883]
[1748129911301,0.00592733,2531.6,2531.4,17.089]
[1748129911497,0.00592733,2531.6,2531.5,0.7898]
[1748129911699,0.00592733,2531.6,2531.5,2.1882]
[1748129915510,0.08142359,2531.6,2531.5,5.396]
[1748129915706,0.08142359,2531.6,2531.5,2.1882]
[1748129916311,0.08142359,2531.6,2531.5,19.2372]
[1748129917511,0.87121359,2531.6,2531.5,17.048]
[1748129918310,0.79571733,2531.6,2531.5,17.048]
[1748129919208,6.98039733,2531.6,2531.0,0.68882733]
[1748129919414,0.78988,2531.3,2531.2,0.78988]
[1748129919613,0.7899,2531.2,2531.1,0.78992]
[1748129919813,0.7899,2531.2,2531.1,17.049]
[1748129920216,0.78993,2531.1,2531.0,0.00592733]
[1748129920512,21.77173,2531.1,2531.0,0.00592733]
[1748129920815,26.77173,2531.1,2531.0,0.00592733]
[1748129923613,3.2078,2531.1,2531.0,0.00592733]
[1748129923819,20.9838,2531.1,2531.0,0.79588733]
[1748129924008,21.77373,2531.1,2531.0,0.00592733]
[1748129924216,21.77373,2531.1,2531.0,0.79588733]
[1748129924519,21.77373,2531.1,2531.0,0.00592733]
[1748129924715,26.77373,2531.1,2531.0,0.00592733]
[1748129925222,26.77373,2531.1,2531.0,7.33e-06]
[1748129928022,29.9065639,2531.1,2531.0,7.33e-06]
[1748129929924,30.2115639,2531.1,2531.0,7.33e-06]
[1748129930821,12.4355639,2531.1,2531.0,7.33e-06]
[1748129931024,25.2145639,2531.1,2531.0,7.33e-06]
[1748129931526,25.29006016,2531.1,2531.0,7.33e-06]
[1748129932226,22.15722626,2531.1,2531.0,7.33e-06]
[1748129932532,22.08173,2531.1,2531.0,7.33e-06]
[1748129933628,22.15722626,2531.1,2531.0,7.33e-06]
[1748129934631,22.08173,2531.1,2531.0,7.33e-06]
[1748129936632,23.46413,2531.1,2531.0,7.33e-06]
[1748129937333,23.46513,2531.1,2531.0,7.33e-06]
[1748129940833,5.68513,2531.1,2531.0,0.78996733]
[1748129941032,4.30273,2531.1,2531.0,17.84396733]
[1748129941233,4.30273,2531.1,2531.0,17.05400733]
[1748129941635,3.28329626,2531.1,2531.0,22.84396733]
[1748129941834,3.1328339,2531.2,2531.1,0.78993]
[1748129942039,2.0664339,2531.2,2531.1,2.07883]
[1748129942242,2.0664339,2531.2,2531.1,7.74653]
[1748129942443,3.2078,2531.4,2531.3,0.78987]
[1748129942743,0.00592733,2531.6,2531.5,0.7898]
[1748129942936,0.00592733,2531.6,2531.5,17.8438]
[1748129943137,0.79569733,2531.6,2531.5,17.054]
[1748129943342,0.79569733,2531.6,2531.5,1.2889]
[1748129943538,0.79569733,2531.6,2531.5,18.3429]
[1748129944640,0.79569733,2531.6,2531.5,19.1327]
[1748129944943,0.87119359,2531.6,2531.5,19.1327]
[1748129945348,0.87119359,2531.6,2531.5,18.3429]
[1748129946147,1.97452,2531.5,2531.2,0.6834]
[1748129946342,1.97452,2531.5,2531.0,17.01700733]
[1748129946343,0.78993,2531.1,2531.0,17.01700733]
[1748129946743,20.9858,2531.3,2531.0,17.01700733]
[1748129946947,0.78991,2531.2,2531.1,1.3426]
[1748129949349,2.15111,2531.2,2531.1,18.3586]
[1748129956552,2.45611,2531.2,2531.1,18.3586]
[1748129956748,0.78993,2531.1,2531.0,7.33e-06]
[1748129956953,3.53233,2531.1,2531.0,7.33e-06]
[1748129957350,0.78993,2531.1,2531.0,0.78996733]
[1748129957546,0.78993,2531.1,2531.0,7.33e-06]
[1748129958050,2.12683,2531.1,2531.0,7.33e-06]
[1748129958655,2.43183,2531.1,2531.0,7.33e-06]
[1748129959057,5.57812572,2531.1,2531.0,7.33e-06]
[1748129960558,10.57812572,2531.1,2531.0,7.33e-06]
[1748129961456,5.57812572,2531.1,2531.0,7.33e-06]
[1748129963960,10.65362198,2531.1,2531.0,7.33e-06]
[1748129964350,5.65362198,2531.1,2531.0,7.33e-06]
[1748129964553,10.65362198,2531.1,2531.0,7.33e-06]
[1748129965063,7.43183,2531.1,2531.0,7.33e-06]
[1748129966959,25.21183,2531.1,2531.0,7.33e-06]
[1748129972369,20.21283,2531.1,2531.0,7.33e-06]
[1748129973864,25.21283,2531.1,2531.0,7.33e-06]
[1748129974367,20.21283,2531.1,2531.0,7.33e-06]
[1748129977173,20.28832626,2531.1,2531.0,7.33e-06]
[1748129978368,23.49612626,2531.1,2531.0,7.33e-06]
[1748129979574,24.20652626,2531.1,2531.0,7.33e-06]
[1748129979874,28.13305151,2531.1,2531.0,7.33e-06]
[1748129981582,33.13305151,2531.1,2531.0,7.33e-06]
[1748129982080,3.95018,2530.8,2530.0,16.981]
[1748129982282,3.99804,2530.1,2530.0,16.981]
[1748129982472,22.08504,2530.1,2530.0,16.981]
[1748129984276,0.7903,2529.9,2529.8,0.00592733]
[1748129985983,18.5733,2529.9,2529.8,0.00592733]
[1748129986884,20.9337142,2529.9,2529.8,0.00592733]
[1748129987783,3.1507142,2529.9,2529.8,0.00592733]
[1748129989489,0.7903,2529.9,2529.8,16.98992733]
[1748129990082,2.3604142,2530.0,2529.9,0.7903]
[1748129990482,2.3604142,2530.0,2529.9,5.7903]
[1748129990677,3.99805,2530.1,2530.0,0.79027]
[1748129991090,3.99805,2530.1,2530.0,5.79027]
[1748129992084,3.99805,2530.1,2530.0,5.0]
[1748129992385,0.86579626,2529.9,2529.8,16.98992733]
[1748129993189,0.86579626,2529.9,2529.8,0.00592733]
[1748129993488,18.64979626,2529.9,2529.8,16.98892733]
[1748129993687,18.64979626,2529.9,2529.8,0.00592733]
[1748130000690,18.95679626,2529.9,2529.8,0.00592733]
[1748130003093,3.95171,2529.8,2528.8,0.72068773]
[1748130003401,0.79062,2528.9,2528.8,18.09608773]
[1748130003793,0.79062,2528.9,2528.8,23.09608773]
[1748130004103,0.79062,2528.9,2528.8,18.09608773]
[1748130004300,0.79062,2528.9,2528.8,18.6672]
[1748130004701,0.79062,2528.9,2528.8,18.2768]
[1748130005803,0.79062,2528.9,2528.8,23.2768]
[1748130006004,0.79062,2528.9,2528.8,24.06745]
[1748130006302,0.79062,2528.9,2528.8,23.2768]
[1748130007207,0.79062,2528.9,2528.8,18.2768]
[1748130007604,0.79062,2528.9,2528.8,19.06745]
[1748130007804,0.79062,2528.9,2528.8,18.2768]
[1748130009008,0.79062,2528.9,2528.8,19.06745]
[1748130009207,18.5786,2529.0,2528.9,0.79059]
[1748130009504,0.7906,2529.0,2528.9,2.12049]
[1748130009704,0.7906,2529.0,2528.9,7.12049]
[1748130010511,0.7906,2529.0,2528.9,6.3299]
[1748130010805,0.7906,2529.0,2528.9,7.12052]
[1748130011506,1.0099,2529.3,2528.9,6.3299]
[1748130011711,17.789,2529.2,2529.1,0.79052]
[1748130011912,18.57952,2529.2,2529.1,0.79052]
[1748130012303,17.789,2529.2,2529.1,0.79052]
[1748130012711,3.2078,2529.4,2529.1,5.0]
[1748130012911,5.56512982,2529.7,2529.6,0.7904]
[1748130013209,6.35549982,2529.7,2529.6,22.7354]
[1748130013604,3.2078,2529.7,2529.6,22.7354]
[1748130013805,3.99817,2529.7,2529.6,22.7354]
[1748130014108,3.2078,2529.7,2529.6,22.7354]
[1748130015115,3.99817,2529.7,2529.6,22.7354]
[1748130015507,3.2078,2529.7,2529.6,22.7354]
[1748130016311,3.2078,2529.7,2529.6,22.7344]
[1748130017215,0.07549626,2529.9,2529.8,0.79033]
[1748130018413,1.38089626,2529.9,2529.8,0.79033]
[1748130020208,0.07549626,2529.9,2529.8,5.79033]
[1748130020414,0.07549626,2529.9,2529.8,8.99813]
[1748130021616,0.00592733,2530.3,2530.2,0.79021]
[1748130021820,2.35732982,2530.7,2530.6,0.79008]
[1748130022014,2.35732982,2530.7,2530.6,17.73208]
[1748130022819,3.14737982,2530.7,2530.6,17.73208]
[1748130023019,4.45557982,2530.7,2530.6,17.73208]
[1748130023318,1.3082,2530.7,2530.6,17.73208]
[1748130023523,2.09825,2530.7,2530.6,17.73208]
[1748130023725,1.3082,2530.7,2530.6,17.73208]
[1748130024522,3.2078,2530.8,2530.7,0.79005]
[1748130026023,4.5408,2530.8,2530.7,0.79005]
[1748130026818,3.2078,2530.8,2530.7,0.79005]
[1748130027218,18.46882733,2530.9,2530.8,0.79002]
[1748130028228,0.00592733,2530.9,2530.8,0.79002]
[1748130029927,0.00592733,2530.9,2530.8,2.19452]
[1748130031920,1.30862733,2530.9,2530.8,2.19452]
[1748130033427,0.00592733,2530.9,2530.8,2.19452]
[1748130035032,0.08142359,2530.9,2530.8,2.19452]
[1748130036435,0.08142359,2530.9,2530.8,19.08952]
[1748130036634,1.41302359,2530.9,2530.8,19.08952]
[1748130038230,2.20301359,2530.9,2530.8,1.4045]
[1748130038430,2.20301359,2530.9,2530.8,16.894]
[1748130038936,2.20301359,2530.9,2530.8,17.68402]
[1748130039241,1.41302359,2530.9,2530.8,17.68402]
[1748130039733,2.12232359,2530.9,2530.8,17.68402]
[1748130040535,2.91231359,2530.9,2530.8,17.68402]
[1748130041031,2.12232359,2530.9,2530.8,17.68402]
[1748130042430,0.79072359,2530.9,2530.8,17.68402]
[1748130046239,0.08142359,2530.9,2530.8,17.68402]
[1748130050838,0.08142359,2530.9,2530.8,19.01402]
[1748130052851,0.08142359,2530.9,2530.8,2.12002]
[1748130053044,0.08142359,2530.9,2530.8,19.01202]
[1748130057751,0.08142359,2530.9,2530.8,19.73270773]
[1748130062153,0.08142359,2530.9,2530.8,18.40270773]
[1748130062354,1.40652359,2530.9,2530.8,18.40270773]
[1748130063351,1.40652359,2530.9,2530.8,17.68202]
[1748130072267,0.08142359,2530.9,2530.8,20.88982]
[1748130072461,2.0707,2531.4,2531.0,1.97489]
[1748130072663,0.6816,2531.6,2531.4,0.78983]
[1748130072962,2.7205,2531.6,2531.4,16.847]
[1748130073162,3.93797962,2531.5,2531.4,16.847]
[1748130073360,1.3689,2531.5,2531.4,17.63683]
[1748130074961,1.3516,2531.6,2531.5,0.7898]
[1748130075164,1.3516,2531.6,2531.5,2.2036]
[1748130076467,2.6778,2531.6,2531.5,0.7898]
[1748130079766,2.75329626,2531.6,2531.5,0.7898]
[1748130080972,2.75329626,2531.6,2531.5,17.6338]
[1748130081467,3.54306626,2531.6,2531.4,0.78982]
[1748130081674,0.78983,2531.4,2531.3,0.00592733]
[1748130081973,0.78983,2531.4,2531.0,0.95914194]
[1748130081974,0.78993,2531.1,2531.0,0.95914194]
[1748130082367,0.78996,2531.0,2530.9,16.844]
[1748130082666,2.88146,2531.0,2530.9,16.844]
[1748130084269,2.0915,2531.0,2530.9,17.63399]
[1748130087278,2.88146,2531.0,2530.9,16.844]
[1748130087482,0.79002,2530.8,2530.7,16.85092733]
[1748130088170,2.75112,2530.8,2530.7,16.85092733]
[1748130088676,1.9611,2530.8,2530.7,17.64097733]
[1748130092483,0.6701,2531.0,2530.9,0.78999]
[1748130092876,2.0437,2531.2,2531.1,0.78993]
[1748130093073,2.0437,2531.2,2531.1,17.63593]
[1748130096488,0.6773,2531.4,2531.3,0.78987]
[1748130097088,0.6773,2531.4,2531.3,2.09327]
[1748130097987,0.6773,2531.4,2531.3,0.78987]
[1748130098286,1.9805,2531.4,2531.3,0.78987]
[1748130098887,1.9805,2531.4,1416.2,9.982]
[1748130098888,0.79002,2530.8,2530.7,0.00592733]
[1748130099086,0.79002,2530.8,2530.2,1.914189]
[1748130099087,0.79005,2530.7,2530.2,1.914189]
[1748130099287,2.74045,2530.7,2530.2,1.914189]
[1748130099788,6.9504,2530.7,2530.0,16.796]
[1748130099987,3.99793,2530.5,2530.1,0.00592733]
[1748130100191,1.3257,2530.4,2530.2,0.79019]
[1748130100490,1.3257,2530.4,2530.1,0.00592733]
[1748130100691,2.11585,2530.4,2530.1,0.79614733]
[1748130100885,2.11585,2530.4,2530.1,0.00592733]
[1748130101084,1.3257,2530.4,2530.1,0.79614733]
[1748130101386,1.3257,2530.4,2530.2,0.79021]
[1748130101686,1.3257,2530.4,2530.3,0.79018]
[1748130102887,3.2078,2530.5,2530.4,0.79015]
[1748130103084,3.2078,2530.5,2530.4,17.59015]
[1748130103481,3.2078,2530.8,2530.7,0.79005]
[1748130104393,3.2078,2530.8,2530.6,0.79006]
[1748130104593,1.3749,2530.9,2530.7,1.2963]
[1748130104793,0.07549626,2531.0,2530.8,17.59]
[1748130105094,0.78999,2530.9,2530.8,16.8]
[1748130106193,1.45039626,2531.0,2530.8,16.8]
[1748130106388,2.24035626,2531.0,2530.8,16.8]
[1748130106985,1.45039626,2531.0,2530.8,16.8]
[1748130107188,2.24037626,2531.0,2530.8,16.8]
[1748130107798,1.45039626,2531.0,2530.8,17.59002]
[1748130107991,1.45039626,2531.0,2530.9,16.799]
[1748130109294,1.45039626,2531.0,2530.9,17.58899]
[1748130110793,0.07549626,2531.0,2530.9,17.58899]
[1748130111596,0.07549626,2531.0,2530.9,22.58899]
[1748130111797,0.07549626,2531.0,2530.9,23.95979]
[1748130112498,0.07549626,2531.0,2530.9,18.95979]
[1748130118100,0.07549626,2531.0,2530.9,23.95979]
[1748130118302,2.66622418,2531.6,2531.5,0.7898]
[1748130118605,2.36122418,2531.6,2531.5,17.5868]
[1748130118805,1.3844,2531.6,2531.5,17.5868]
[1748130122206,1.3844,2531.6,2531.3,1.3853]
[1748130122412,0.78981,2531.5,2531.4,16.796]
[1748130122609,2.17419,2531.6,2531.4,16.796]
[1748130122816,2.17419,2531.6,2531.5,0.7898]
[1748130122817,1.3844,2531.6,2531.5,0.7898]
[1748130123108,0.68242733,2531.7,2531.6,0.78977]
[1748130124211,0.00592733,2531.7,2531.6,0.78977]
[1748130124808,1.41732733,2531.7,2531.6,0.78977]
[1748130128516,0.00592733,2531.7,2531.6,0.78977]
[1748130128720,5.56902418,2532.4,2532.3,0.78955]
[1748130128920,5.56902418,2532.4,2532.3,17.56455]
[1748130129925,3.2078,2532.4,2532.3,17.56455]
[1748130132221,2.75742733,2532.6,2532.3,17.56455]
[1748130132222,2.75742733,2532.6,2532.5,0.78949]
[1748130132423,3.2078,2533.0,2532.9,0.78937]
[1748130132626,3.2078,2533.0,2532.9,17.56237]
[1748130133419,2.0639,2533.1,2533.0,0.78934]
[1748130133726,2.36122418,2533.7,2533.6,0.78915]
[1748130134021,2.36122418,2533.7,2533.6,17.56015]
[1748130134319,2.36122418,2533.7,2533.6,16.771]
[1748130134720,2.15692,2533.7,2533.6,16.771]
[1748130135222,6.3678,2533.7,2533.6,16.771]
[1748130135421,7.15692,2533.7,2533.6,16.771]
[1748130135924,0.78922,2533.4,2533.3,16.768]
[1748130136919,5.78921,2533.4,2533.3,16.768]
[1748130137119,7.16961,2533.4,2533.3,16.768]
[1748130137424,2.16961,2533.4,2533.3,16.768]
[1748130138627,1.3804,2533.4,2533.3,16.768]
[1748130139328,2.16964,2533.4,2533.3,16.768]
[1748130139526,2.24513626,2533.4,2533.3,16.768]
[1748130140121,2.24513626,2533.4,2533.3,17.55727]
[1748130140425,1.45589626,2533.4,2533.3,16.768]
[1748130141329,2.24514626,2533.4,2533.3,16.768]
[1748130143525,6.45589626,2533.4,2532.7,3.21372733]
[1748130143721,6.45589626,2533.4,2532.8,16.765]
[1748130143722,0.78938,2532.9,2532.8,16.765]
[1748130144525,0.7894,2532.8,2532.7,19.97872733]
[1748130144731,3.4894,2532.8,2532.7,16.77092733]
[1748130146327,8.4894,2532.8,2532.7,0.00592733]
[1748130148419,0.78955,2532.3,2532.2,39.807]
[1748130148624,0.78958,2532.2,2532.1,16.766]
[1748130149029,0.78958,2532.2,2532.1,17.55562]
[1748130149230,0.78958,2532.2,2532.1,16.766]
[1748130149830,3.21372733,2532.4,2532.1,16.766]
[1748130149831,3.21372733,2532.4,2532.3,0.78955]
[1748130150136,0.79545733,2532.4,2532.2,2.07637]
[1748130150323,0.79545733,2532.4,2532.3,1.2868]
[1748130151233,0.78955,2532.3,2532.1,18.22031]
[1748130151531,0.00592733,2532.4,2532.3,0.78955]
[1748130152028,0.00592733,2532.4,2532.3,5.78955]
[1748130152928,0.00592733,2532.4,2532.2,1.3347]
[1748130153135,0.00592733,2532.4,2532.3,17.55655]
[1748130154526,0.00592733,2532.4,2532.3,22.55655]
[1748130155732,0.08142359,2532.4,2532.3,22.55655]
[1748130157227,0.08142359,2532.4,2532.3,17.55655]
[1748130159134,0.08142359,2532.4,2532.3,22.55655]
[1748130159621,0.08142359,2532.4,2532.3,17.55655]
[1748130160028,0.08142359,2532.4,2532.3,22.55655]
[1748130160327,3.2078,2532.9,2532.8,0.7894]
[1748130160536,3.2078,2532.9,2532.8,17.5224]
[1748130160834,2.36122418,2533.2,2533.1,0.7893]
[1748130161329,6.35824418,2533.4,2533.1,0.78929]
[1748130161540,7.72044418,2533.4,2533.2,18.1294]
[1748130161931,4.57,2533.4,2532.8,3.2078]
[1748130162132,4.57,2533.4,2532.9,18.1294]
[1748130162331,0.6579,2533.3,2532.9,18.1294]
[1748130162629,1.3622,2533.2,2533.0,0.78931]
[1748130162830,1.3622,2533.2,2533.0,2.18571]
[1748130163033,1.3622,2533.2,2533.1,0.7893]
[1748130163338,1.3622,2533.2,2533.0,1.3964]
[1748130163931,2.15147,2533.2,2533.1,16.732]
[1748130164333,0.78938,2532.9,2532.6,1.44315]
[1748130164540,0.78938,2532.9,2532.8,16.732]
[1748130165242,0.78946,2532.6,2532.5,39.793]
[1748130165437,0.78946,2532.6,2532.5,56.525]
[1748130166328,0.78946,2532.6,2532.5,16.732]
[1748130166534,0.78955,2532.3,2532.2,16.733]
[1748130167741,0.78955,2532.3,2531.9,0.00592733]
[1748130167742,5.0,2532.3,2531.9,0.00592733]
[1748130167944,0.78965,2532.0,2531.9,16.73892733]
[1748130168537,0.78965,2532.0,2531.9,0.00592733]
[1748130168738,5.78965,2532.0,2531.9,0.00592733]
[1748130171435,3.2078,2532.1,2531.9,0.00592733]
[1748130171741,3.2078,2532.1,2532.0,0.78965]
[1748130172838,4.07283626,2532.4,2531.9,16.73992733]
[1748130173142,3.28329626,2532.4,2532.0,1.3369]
[1748130173541,0.78955,2532.3,2532.1,0.7896]
[1748130173742,0.78956,2532.3,2532.1,0.78961]
[1748130174047,0.86503626,2532.4,2532.2,0.78958]
[1748130174249,0.86503626,2532.4,2532.3,16.736]
[1748130174745,0.86503626,2532.4,2532.0,2.12655]
[1748130174746,0.7896,2532.2,2532.0,2.12655]
[1748130175044,0.7896,2532.2,2532.1,16.736]
[1748130175248,0.07549626,2532.4,2532.1,16.736]
[1748130175447,0.86503626,2532.4,2532.2,0.78957]
[1748130175640,4.07283626,2532.4,2532.2,2.13957]
[1748130176249,0.78965,2532.0,2531.9,0.00592733]
[1748130176559,21.76545,2532.0,2531.9,0.00592733]
[1748130176744,26.76545,2532.0,2531.9,0.00592733]
[1748130177645,21.76545,2532.0,2531.9,0.00592733]
[1748130179247,23.09545,2532.0,2531.9,0.00592733]
[1748130180446,4.5378,2532.0,2531.9,0.00592733]
[1748130180751,5.32745,2532.0,2531.9,0.00592733]
[1748130182051,4.5378,2532.0,2531.9,0.79560733]
[1748130182244,5.32745,2532.0,2531.9,0.00592733]
[1748130183752,0.7037,2532.1,2532.0,0.78965]
[1748130183954,2.77833,2532.1,2531.9,0.79558733]
[1748130184446,2.77833,2532.1,2531.9,2.16998733]
[1748130184952,1.9887,2532.1,2531.9,1.38032733]
[1748130185248,2.77833,2532.1,2531.9,2.16997733]
[1748130185446,2.77832,2532.1,2531.9,2.16997733]
[1748130186252,0.07549626,2532.0,2531.9,2.16997733]
[1748130189452,0.07549626,2532.0,2531.9,7.16997733]
[1748130190949,4.07294626,2532.0,2531.9,0.00592733]
[1748130191151,9.07294626,2532.0,2531.9,0.00592733]
[1748130191350,6.75404626,2532.0,2531.9,0.00592733]
[1748130191851,6.75404626,2532.0,2531.3,1.43512514]
[1748130191852,1.97443,2531.7,2531.3,1.43512514]
[1748130192058,0.78991,2531.2,2531.0,17.4347798]
[1748130192357,1.363,2531.1,2531.0,0.7187798]
[1748130193460,1.363,2531.1,2530.9,18.87318]
[1748130193869,1.363,2531.1,2530.9,18.0832]
[1748130194065,1.363,2531.1,2530.9,16.716]
[1748130194558,1.363,2531.1,2530.8,0.79592733]
[1748130194758,1.363,2531.1,2530.9,17.50798]
[1748130194960,1.363,2531.1,2531.0,0.78996]
[1748130195360,1.363,2531.1,2531.0,2.14386]
[1748130198667,1.363,2531.1,2531.0,0.78996]
[1748130200467,1.43849626,2531.1,2531.0,0.78996]
[1748130200868,1.43849626,2531.1,2530.8,0.00592733]
[1748130200869,0.78999,2530.9,2530.8,0.00592733]
[1748130201068,3.99779,2530.9,2530.8,0.00592733]
[1748130201268,8.99779,2530.9,2530.8,0.00592733]